bitfinex/quotes_BTCUSD_20220111
["timestamp","ask_amount","ask_price","bid_price","bid_amount"]
[1641875467442,0.001,42286.0,42285.0,1.78635735]
[1641875468042,0.001,42286.0,42285.0,1.80935735]
[1641875468243,0.001,42286.0,42285.0,1.39864845]
[1641875469289,0.001,42286.0,42285.0,1.47564845]
[1641875469891,0.001,42286.0,42285.0,2.15698613]
[1641875470089,0.001,42286.0,42285.0,2.20598613]
[1641875470490,0.001,42286.0,42285.0,3.46098613]
[1641875471191,0.001,42286.0,42285.0,3.41198613]
[1641875471892,0.001,42286.0,42285.0,1.72499885]
[1641875472092,0.001,42286.0,42285.0,1.79699885]
[1641875472292,0.001,42286.0,42285.0,3.48382129]
[1641875472742,0.001,42286.0,42285.0,2.22882129]
[1641875473541,0.001,42286.0,42285.0,2.64882129]
[1641875473941,0.001,42286.0,42285.0,2.57682129]
[1641875474146,0.001,42286.0,42285.0,2.64882129]
[1641875474342,0.001,42286.0,42285.0,0.96199885]
[1641875475344,0.001,42286.0,42285.0,0.88999885]
[1641875475545,0.0020437,42297.0,42290.0,0.01502208]
[1641875476147,0.0020437,42297.0,42290.0,0.05302208]
[1641875476396,0.0020437,42297.0,42291.0,0.369704]
[1641875476597,0.0020437,42297.0,42295.0,0.43423008]
[1641875476999,0.0020437,42297.0,42290.0,0.05302208]
[1641875477198,0.00053238,42296.0,42291.0,0.369701]
[1641875477598,0.00053238,42296.0,42292.0,0.00026548]
[1641875477999,0.00053238,42296.0,42292.0,0.02926548]
[1641875479308,0.00053238,42296.0,42292.0,0.00026548]
[1641875479503,0.00106476,42296.0,42292.0,0.00026548]
[1641875479802,0.00053238,42296.0,42292.0,0.00026548]
[1641875480002,0.00053238,42296.0,42292.0,0.03126548]
[1641875480639,0.00053238,42296.0,42293.0,0.76332783]
[1641875480840,0.00052524,42296.0,42295.0,0.00126113]
[1641875481041,0.0001,42300.0,42295.0,0.77092613]
[1641875481245,0.9487,42311.0,42295.0,0.77092613]
[1641875481246,0.001,42308.0,42299.0,0.369627]
[1641875481442,0.001,42308.0,42307.0,0.00127152]
[1641875482045,0.001,42308.0,42307.0,0.01627152]
[1641875482243,0.001,42308.0,42307.0,0.01127152]
[1641875482445,0.001,42308.0,42307.0,0.85361879]
[1641875482643,0.001,42308.0,42307.0,1.22316079]
[1641875483246,0.001,42308.0,42307.0,1.21188927]
[1641875483546,0.001,42308.0,42307.0,1.54725246]
[1641875484004,0.001,42308.0,42307.0,1.56425246]
[1641875485304,0.001,42308.0,42307.0,1.54725246]
[1641875485707,0.001,42308.0,42307.0,1.21188927]
[1641875485905,0.001,42308.0,42307.0,1.2131315]
[1641875486107,0.001,42308.0,42307.0,1.2301315]
[1641875486305,0.001,42308.0,42307.0,0.936542]
[1641875487307,0.001,42308.0,42307.0,1.18951631]
[1641875487507,0.001,42308.0,42307.0,0.91980423]
[1641875487951,0.001,42308.0,42307.0,1.24316501]
[1641875488152,0.001,42308.0,42307.0,1.26116501]
[1641875488353,0.001,42308.0,42307.0,0.93780423]
[1641875488554,0.001,42308.0,42307.0,0.38780423]
[1641875488754,0.001,42308.0,42307.0,0.01826223]
[1641875489353,0.001,42308.0,42307.0,0.00026223]
[1641875489854,0.001,42308.0,42307.0,0.33117701]
[1641875490056,0.001,42308.0,42307.0,1.06250498]
[1641875491502,0.001,42308.0,42307.0,0.70071901]
[1641875492103,0.001,42308.0,42307.0,0.71871901]
[1641875492303,0.001,42308.0,42307.0,1.06871901]
[1641875492804,0.001,42308.0,42307.0,0.71871901]
[1641875493406,0.001,42308.0,42307.0,0.70071901]
[1641875494208,0.001,42308.0,42307.0,0.71671901]
[1641875495443,0.001,42308.0,42307.0,0.70071901]
[1641875496242,0.001,42308.0,42307.0,0.71771901]
[1641875497444,0.001,42308.0,42307.0,0.36980423]
[1641875498143,0.001,42308.0,42307.0,0.68580423]
[1641875498343,0.001,42308.0,42307.0,0.38580423]
[1641875499394,0.001,42308.0,42307.0,0.36980423]
[1641875500197,0.001,42308.0,42307.0,0.38780423]
[1641875500998,0.00151282,42309.0,42308.0,0.369533]
[1641875501995,0.00151282,42309.0,42307.0,0.01826223]
[1641875502196,0.00151282,42309.0,42308.0,0.015]
[1641875502642,0.00151282,42309.0,42308.0,0.01526202]
[1641875503445,0.00151282,42309.0,42308.0,0.00026202]
[1641875503643,0.00151282,42309.0,42308.0,0.36979302]
[1641875504244,0.00150946,42311.0,42310.0,4.40469918]
[1641875504544,0.00150946,42311.0,42310.0,4.77421018]
[1641875504947,0.001,42311.0,42310.0,4.77421018]
[1641875505346,0.001,42311.0,42310.0,4.87421018]
[1641875505745,0.001,42311.0,42310.0,4.77421018]
[1641875506143,0.001,42311.0,42310.0,4.79321018]
[1641875507395,0.001,42311.0,42310.0,4.79347176]
[1641875507895,0.00050948,42313.0,42310.0,4.79347176]
[1641875508096,0.00050948,42313.0,42311.0,0.69940013]
[1641875508298,0.00050948,42313.0,42312.0,0.31416263]
[1641875508498,0.00050948,42313.0,42312.0,0.68365263]
[1641875508697,0.00050948,42313.0,42312.0,0.36949]
[1641875509698,0.001,42316.0,42312.0,0.699427]
[1641875509699,0.00050949,42315.0,42312.0,0.699427]
[1641875509898,0.00050949,42315.0,42313.0,0.36948]
[1641875510946,0.00150951,42316.0,42313.0,0.36948]
[1641875512145,0.00150951,42316.0,42313.0,0.38048]
[1641875512146,0.001,42316.0,42313.0,0.38048]
[1641875512546,0.4291171,42320.0,42315.0,0.0002605]
[1641875512749,0.4291171,42320.0,42316.0,0.369449]
[1641875513147,0.4291171,42320.0,42315.0,0.0002605]
[1641875514099,0.4291171,42320.0,42315.0,0.0102605]
[1641875514499,0.00030308,42319.0,42315.0,0.0102605]
[1641875514902,0.00030308,42319.0,42316.0,0.369448]
[1641875515100,0.00030308,42319.0,42317.0,0.3129366]
[1641875515303,0.00030308,42319.0,42317.0,0.369438]
[1641875516101,0.00030308,42319.0,42317.0,0.379438]
[1641875516904,0.42957436,42320.0,42317.0,0.379438]
[1641875517505,0.42957436,42320.0,42317.0,0.36969807]
[1641875518148,0.42962887,42320.0,42317.0,0.37869807]
[1641875519448,0.42962887,42320.0,42317.0,0.69521567]
[1641875519647,0.42962887,42320.0,42317.0,0.36969807]
[1641875520249,0.42962887,42320.0,42317.0,0.38069807]
[1641875521493,0.00962887,42320.0,42317.0,0.36969807]
[1641875521693,0.00963,42320.0,42317.0,0.36969807]
[1641875522193,0.001,42322.0,42318.0,0.369429]
[1641875522398,0.001,42322.0,42317.0,0.01026007]
[1641875523194,0.001,42322.0,42318.0,0.29931469]
[1641875523393,0.001,42322.0,42321.0,0.44809008]
[1641875524095,0.001,42322.0,42321.0,0.81748908]
[1641875524293,0.001,42322.0,42321.0,0.83248908]
[1641875525547,0.010477,42325.0,42322.0,0.369388]
[1641875525548,0.00059555,42325.0,42322.0,0.369388]
[1641875525743,0.00059555,42325.0,42322.0,0.42845]
[1641875526143,0.00059555,42325.0,42322.0,0.44345]
[1641875526344,0.00059555,42325.0,42324.0,2.79383489]
[1641875526544,0.005,42329.0,42324.0,2.79383489]
[1641875526744,0.005,42329.0,42327.0,0.00121381]
[1641875526945,0.005,42329.0,42327.0,0.37054881]
[1641875528149,0.009476,42335.0,42331.0,0.059045]
[1641875528545,0.009476,42335.0,42332.0,0.37048309]
[1641875528994,0.009476,42335.0,42333.0,0.31836339]
[1641875529197,0.009476,42335.0,42334.0,0.75407809]
[1641875529795,7.6e-05,42335.0,42334.0,0.75407809]
[1641875530197,7.6e-05,42335.0,42334.0,0.77107809]
[1641875530397,7.6e-05,42335.0,42334.0,0.7614639]
[1641875530799,7.6e-05,42335.0,42334.0,2.0641202]
[1641875530996,0.00059069,42337.0,42334.0,2.0641202]
[1641875531398,0.00059069,42337.0,42335.0,0.369253]
[1641875531597,0.00059069,42337.0,42336.0,0.70584326]
[1641875531999,0.00059069,42337.0,42336.0,1.10978961]
[1641875532200,0.00059069,42337.0,42336.0,1.12678961]
[1641875532501,0.0005907,42339.0,42336.0,1.12678961]
[1641875532744,0.0005907,42339.0,42337.0,0.36575943]
[1641875532943,0.0005907,42339.0,42338.0,0.69513791]
[1641875533545,0.0005907,42339.0,42338.0,0.75417691]
[1641875533745,0.001,42340.0,42338.0,0.369222]
[1641875534145,0.001,42340.0,42339.0,0.31958909]
[1641875534345,0.001,42340.0,42339.0,0.369211]
[1641875536146,0.001,42340.0,42339.0,0.382211]
[1641875536907,0.01140291,42348.0,42340.0,0.369202]
[1641875536908,0.00193091,42348.0,42340.0,0.369202]
[1641875537306,0.0004828,42342.0,42340.0,0.369202]
[1641875538107,0.0004828,42342.0,42341.0,0.059031]
[1641875538309,0.0004828,42342.0,42341.0,0.428222]
[1641875538510,0.00050117,42344.0,42341.0,0.428222]
[1641875539008,0.00050117,42344.0,42341.0,0.487254]
[1641875539207,0.00050117,42344.0,42342.0,0.411029]
[1641875539507,0.00050117,42344.0,42343.0,0.369171]
[1641875539707,0.00050119,42345.0,42343.0,0.369171]
[1641875540262,0.00050119,42345.0,42343.0,0.381171]
[1641875540649,0.00030119,42345.0,42343.0,0.381171]
[1641875540850,0.0005012,42346.0,42343.0,0.381171]
[1641875541952,0.0005012,42346.0,42343.0,0.012]
[1641875542150,0.004,42349.0,42343.0,0.011]
[1641875542151,0.02430449,42347.0,42343.0,0.011]
[1641875542349,0.0057748,42345.0,42343.0,0.011]
[1641875543554,0.0057748,42345.0,42339.0,0.43802545]
[1641875543750,0.0057748,42345.0,42340.0,0.369196]
[1641875544199,0.0347748,42345.0,42340.0,0.379196]
[1641875544798,0.0347748,42345.0,42340.0,0.01]
[1641875545398,0.0347748,42345.0,42339.0,0.43802545]
[1641875545599,0.0057748,42345.0,42339.0,0.43802545]
[1641875546203,0.0147748,42345.0,42339.0,0.44902545]
[1641875546801,0.0147748,42345.0,42339.0,0.011]
[1641875547201,0.0097748,42345.0,42339.0,0.011]
[1641875547402,0.0007748,42345.0,42333.0,0.72476888]
[1641875547667,0.26089163,42345.0,42341.0,0.00021847]
[1641875548165,0.27089163,42345.0,42341.0,0.00921847]
[1641875548771,0.370298,42344.0,42341.0,0.00921847]
[1641875548969,0.370298,42344.0,42327.0,0.177148]
[1641875548970,0.41934317,42343.0,42328.0,0.00071665]
[1641875549168,0.03512666,42334.0,42328.0,0.00071665]
[1641875549366,0.0473,42333.0,42328.0,0.00071655]
[1641875549866,0.0473,42333.0,42330.0,0.24274075]
[1641875550067,0.0473,42333.0,42328.0,0.00071655]
[1641875550265,0.0543,42333.0,42328.0,0.01371655]
[1641875550469,0.0543,42333.0,42328.0,0.01371647]
[1641875551067,0.0543,42333.0,42330.0,0.30300517]
[1641875551270,0.0543,42333.0,42328.0,0.01371647]
[1641875551506,0.0473,42333.0,42328.0,0.00071647]
[1641875552102,2.22362732,42399.0,42345.0,0.72031547]
[1641875552301,0.370298,42346.0,42345.0,0.72031547]
[1641875552501,0.90772146,42346.0,42345.0,0.72031547]
[1641875552701,0.90772146,42346.0,42332.0,0.00151938]
[1641875552702,2.26983663,42346.0,42332.0,0.00151938]
[1641875553002,2.26983663,42346.0,42332.0,0.00026603]
[1641875553003,0.1,42339.0,42332.0,0.00026603]
[1641875553203,0.27127993,42337.0,42332.0,0.00026603]
[1641875553401,0.417598,42336.0,42332.0,0.00026603]
[1641875554202,0.432598,42336.0,42332.0,0.00226603]
[1641875554803,0.432598,42336.0,42334.0,0.34677233]
[1641875555003,0.0623,42336.0,42334.0,0.34677233]
[1641875555457,0.0473,42336.0,42334.0,0.34677233]
[1641875555755,0.0473,42336.0,42335.0,1.119253]
[1641875555958,0.49723863,42346.0,42335.0,0.369253]
[1641875556155,0.49723863,42346.0,42334.0,0.34677233]
[1641875556359,0.49723863,42346.0,42335.0,0.305]
[1641875556360,0.037,42336.0,42335.0,0.305]
[1641875556558,0.037,42336.0,42335.0,0.67436479]
[1641875557257,0.037,42336.0,42335.0,0.374246]
[1641875557457,0.32710218,42345.0,42336.0,0.00026499]
[1641875557659,0.42935806,42344.0,42336.0,0.00026499]
[1641875558260,0.47035806,42344.0,42336.0,0.00226499]
[1641875558460,0.0100668,42343.0,42336.0,0.00226499]
[1641875558659,0.0100668,42343.0,42341.0,0.00126546]
[1641875559298,0.0100668,42343.0,42336.0,0.00226499]
[1641875559503,0.0100668,42343.0,42336.0,0.00026499]
[1641875560102,0.0100668,42343.0,42337.0,0.369229]
[1641875560301,0.0240668,42343.0,42337.0,0.369229]
[1641875560901,0.0240668,42343.0,42336.0,0.00926499]
[1641875561102,0.2985009,42339.0,42336.0,0.00926499]
[1641875561301,0.30561595,42339.0,42336.0,0.00926499]
[1641875562100,0.30561595,42339.0,42336.0,0.00026499]
[1641875562300,0.30561595,42339.0,42336.0,0.01326499]
[1641875562503,0.30561595,42339.0,42336.0,0.013]
[1641875563245,0.00711505,42339.0,42336.0,0.013]
[1641875563447,0.00711505,42339.0,42333.0,0.37739436]
[1641875563648,0.00711505,42339.0,42334.0,0.369256]
[1641875564247,0.23894794,42337.0,42334.0,0.383256]
[1641875564848,0.0473,42342.0,42334.0,0.383256]
[1641875565149,0.0473,42342.0,42334.0,0.014]
[1641875565347,0.0100668,42343.0,42335.0,0.369249]
[1641875565548,0.0100668,42343.0,42333.0,0.00026447]
[1641875565749,0.0100668,42343.0,42334.0,0.369257]
[1641875566406,0.0100668,42343.0,42334.0,0.383257]
[1641875566604,0.0100668,42343.0,42339.0,0.44380819]
[1641875567801,0.0100668,42343.0,42336.0,0.00026499]
[1641875567802,0.0098418,42343.0,42336.0,0.00026499]
[1641875568401,0.0098418,42343.0,42336.0,0.01326499]
[1641875569001,0.0098418,42343.0,42336.0,0.45535773]
[1641875569602,0.0098418,42343.0,42336.0,0.44235773]
[1641875569802,0.0098418,42343.0,42336.0,0.00026499]
[1641875570448,0.31258175,42337.0,42336.0,0.00026499]
[1641875570648,0.31258175,42337.0,42336.0,0.36950099]
[1641875572251,0.31258175,42337.0,42336.0,0.39350099]
[1641875573452,0.31258175,42337.0,42336.0,0.40648163]
[1641875574297,0.31258175,42337.0,42336.0,0.43148163]
[1641875574700,0.00711427,42342.0,42336.0,0.43148163]
[1641875574900,0.02430451,42347.0,42341.0,0.0012122]
[1641875575301,0.02430451,42347.0,42342.0,0.36918]
[1641875575501,0.02430451,42347.0,42344.0,0.00121349]
[1641875575703,0.02430463,42347.0,42344.0,0.37037349]
[1641875575901,0.02430463,42347.0,42344.0,0.78356846]
[1641875576303,0.02430463,42347.0,42344.0,0.38437349]
[1641875577005,0.02430466,42347.0,42344.0,0.38437349]
[1641875577648,0.02430466,42347.0,42344.0,0.38463641]
[1641875577847,0.02430466,42347.0,42344.0,0.38342292]
[1641875578248,0.02430462,42347.0,42344.0,0.72322548]
[1641875578448,0.02430462,42347.0,42344.0,0.73722548]
[1641875578648,0.02430462,42347.0,42344.0,0.39742292]
[1641875579650,0.02430462,42347.0,42344.0,0.36942292]
[1641875580449,0.02430462,42347.0,42344.0,0.38542292]
[1641875580950,0.02430462,42347.0,42340.0,0.58386861]
[1641875581149,0.1,42343.0,42339.0,0.58386861]
[1641875581420,0.0473,42342.0,42339.0,0.58386861]
[1641875581804,0.26661573,42340.0,42337.0,0.68133768]
[1641875582003,0.0473,42339.0,42336.0,0.03698064]
[1641875582404,0.0473,42339.0,42337.0,0.37012512]
[1641875582805,0.01,42340.0,42338.0,0.969214]
[1641875583004,0.01,42340.0,42339.0,0.75175626]
[1641875583305,0.01,42340.0,42339.0,0.369211]
[1641875583704,0.0057722,42341.0,42337.0,0.37404024]
[1641875583904,0.0057722,42341.0,42338.0,0.36922]
[1641875584304,0.0057722,42341.0,42338.0,0.38622]
[1641875584710,0.0057722,42341.0,42337.0,0.36905328]
[1641875585952,0.0057722,42341.0,42338.0,0.36922]
[1641875586354,0.0077722,42341.0,42338.0,0.36922]
[1641875587652,0.0057722,42341.0,42340.0,0.00023766]
[1641875588454,0.0077722,42341.0,42340.0,0.00023766]
[1641875589602,0.0057722,42341.0,42340.0,0.00023766]
[1641875590403,0.0087722,42341.0,42340.0,0.00023766]
[1641875591209,0.0087722,42341.0,42340.0,0.50023766]
[1641875591405,0.0087722,42341.0,42340.0,1.19540676]
[1641875591606,0.0057722,42341.0,42340.0,1.19540676]
[1641875592006,0.0057722,42341.0,42340.0,1.29540676]
[1641875592208,0.0057722,42341.0,42340.0,1.19540676]
[1641875592413,0.0007722,42341.0,42340.0,0.72240676]
[1641875592856,0.0007722,42341.0,42340.0,0.39643866]
[1641875593254,0.0007722,42341.0,42340.0,0.98030727]
[1641875593455,0.008402,42345.0,42343.0,0.33836771]
[1641875593654,0.008402,42345.0,42344.0,0.369161]
[1641875593954,0.008402,42345.0,42344.0,0.72300649]
[1641875594354,0.008402,42345.0,42344.0,0.75025893]
[1641875595155,0.008402,42345.0,42344.0,0.39641344]
[1641875595358,0.02430464,42347.0,42344.0,0.39641344]
[1641875595555,0.02430464,42347.0,42346.0,0.00127887]
[1641875595756,0.02430464,42347.0,42346.0,0.37041987]
[1641875595957,0.02430464,42347.0,42346.0,0.42041987]
[1641875596160,0.00049485,42348.0,42347.0,0.55]
[1641875596409,0.00049485,42348.0,42347.0,0.369129]
[1641875596802,0.00049485,42348.0,42347.0,0.364129]
[1641875597002,0.00049485,42348.0,42347.0,1.39655513]
[1641875597202,0.00049485,42348.0,42347.0,1.45558313]
[1641875597404,0.013473,42349.0,42347.0,1.45558313]
[1641875597706,0.013473,42349.0,42348.0,1.19085643]
[1641875598504,0.013473,42349.0,42348.0,1.20585643]
[1641875599903,0.013473,42349.0,42348.0,1.19085643]
[1641875600362,0.013473,42349.0,42348.0,1.20685643]
[1641875600758,0.013473,42349.0,42348.0,1.78928256]
[1641875601458,0.013473,42349.0,42348.0,1.20685643]
[1641875601658,0.013473,42349.0,42348.0,1.19085643]
[1641875601859,0.013473,42349.0,42348.0,1.014157]
[1641875602058,0.01283312,42349.0,42348.0,0.359157]
[1641875602459,0.01283312,42349.0,42348.0,0.375157]
[1641875602659,0.01283312,42349.0,42348.0,0.37539259]
[1641875603060,0.01283312,42349.0,42348.0,0.67539259]
[1641875603560,0.01283312,42349.0,42348.0,0.37539259]
[1641875603761,0.01283312,42349.0,42348.0,0.35939259]
[1641875604003,0.00158104,42351.0,42348.0,0.35939259]
[1641875604404,0.00158104,42351.0,42348.0,0.37539259]
[1641875604601,0.00147588,42351.0,42348.0,0.37539259]
[1641875604801,0.00147588,42351.0,42350.0,0.28986406]
[1641875605001,0.00147588,42351.0,42350.0,0.359137]
[1641875605802,0.001,42351.0,42350.0,0.359137]
[1641875606403,0.003,42351.0,42350.0,0.373137]
[1641875607404,0.003,42351.0,42350.0,0.37337207]
[1641875607654,0.001,42351.0,42350.0,0.35937207]
[1641875608158,0.001,42351.0,42350.0,0.77905891]
[1641875608354,0.001,42351.0,42350.0,0.79405891]
[1641875609757,0.001,42351.0,42350.0,0.77905891]
[1641875610661,0.001,42351.0,42350.0,0.79405891]
[1641875611702,0.001,42351.0,42350.0,0.77905891]
[1641875612300,0.001,42351.0,42350.0,0.35937207]
[1641875612499,0.001,42351.0,42350.0,0.37437207]
[1641875613703,0.001,42351.0,42350.0,0.35937207]
[1641875614502,0.001,42351.0,42350.0,0.37437207]
[1641875615005,0.00045906,42353.0,42350.0,0.37437207]
[1641875615252,0.00045906,42353.0,42351.0,0.359128]
[1641875615452,0.00049176,42353.0,42351.0,0.359128]
[1641875616453,0.00249176,42353.0,42351.0,0.372128]
[1641875616652,0.002,42353.0,42351.0,0.372128]
[1641875617554,0.002,42353.0,42352.0,0.00023455]
[1641875617756,0.001,42358.0,42352.0,0.35935155]
[1641875618555,0.003,42354.0,42352.0,0.37135155]
[1641875620305,0.002,42354.0,42352.0,0.35935155]
[1641875620502,0.004,42354.0,42352.0,0.37235155]
[1641875621704,0.002,42354.0,42352.0,0.35935155]
[1641875622505,0.002,42354.0,42352.0,0.37235155]
[1641875623873,0.002,42354.0,42352.0,0.35935155]
[1641875624072,0.002,42354.0,42352.0,0.00023455]
[1641875624471,0.004,42354.0,42352.0,0.01323455]
[1641875625873,0.002,42354.0,42352.0,0.00023455]
[1641875626504,0.004,42354.0,42352.0,0.01323455]
[1641875628409,0.002,42354.0,42352.0,0.00023455]
[1641875628608,0.003,42354.0,42352.0,0.01223455]
[1641875629810,0.370052,42353.0,42352.0,0.00023455]
[1641875630012,0.002,42354.0,42352.0,0.00023455]
[1641875630659,0.003,42354.0,42352.0,0.01223455]
[1641875631861,0.0473,42353.0,42352.0,0.01223455]
[1641875632261,0.0473,42353.0,42352.0,0.00023455]
[1641875632460,0.0493,42353.0,42352.0,0.01223455]
[1641875632660,0.0493,42353.0,42352.0,0.012]
[1641875633908,0.0493,42353.0,42348.0,0.26396849]
[1641875633909,0.0473,42353.0,42348.0,0.26396849]
[1641875634106,0.0473,42353.0,42349.0,0.359143]
[1641875634505,0.04879155,42353.0,42349.0,0.359143]
[1641875635605,0.04879155,42353.0,42350.0,0.58242613]
[1641875635805,0.04779155,42353.0,42351.0,0.359127]
[1641875636608,0.04879155,42353.0,42351.0,0.95455313]
[1641875637005,0.0483,42353.0,42351.0,0.95455313]
[1641875637205,0.0483,42353.0,42351.0,0.372127]
[1641875637405,0.0483,42353.0,42352.0,0.00023455]
[1641875637652,0.0483,42353.0,42352.0,0.35935155]
[1641875637852,0.0473,42353.0,42352.0,0.35935155]
[1641875638657,0.0483,42353.0,42352.0,0.37135155]
[1641875639854,0.0473,42353.0,42352.0,0.35935155]
[1641875640654,0.0483,42353.0,42352.0,0.37135155]
[1641875641712,0.0483,42353.0,42352.0,0.35935155]
[1641875641909,0.0473,42353.0,42352.0,0.35935155]
[1641875642806,0.0483,42353.0,42352.0,0.37135155]
[1641875643907,0.0473,42353.0,42352.0,0.35935155]
[1641875644307,0.002,42354.0,42352.0,0.67370165]
[1641875644511,0.002,42354.0,42352.0,0.35935155]
[1641875644707,0.001,42353.0,42352.0,0.37235155]
[1641875644909,0.001,42353.0,42352.0,1.27319856]
[1641875645753,0.002,42354.0,42352.0,1.26019856]
[1641875646155,0.002,42354.0,42352.0,0.94177768]
[1641875646554,0.003,42354.0,42352.0,0.95377768]
[1641875647955,0.002,42354.0,42352.0,0.94177768]
[1641875648560,0.003,42354.0,42352.0,0.95377768]
[1641875649807,0.002,42354.0,42352.0,0.94177768]
[1641875650604,0.003,42354.0,42352.0,0.95377768]
[1641875651905,0.002,42354.0,42352.0,0.94177768]
[1641875652653,0.002,42354.0,42352.0,0.95377768]
[1641875653855,0.002,42354.0,42352.0,0.94177768]
[1641875654661,0.003,42354.0,42352.0,0.95377768]
[1641875655860,0.002,42354.0,42352.0,0.94177768]
[1641875656062,0.002,42354.0,42352.0,0.58266068]
[1641875656509,0.002,42354.0,42353.0,0.359107]
[1641875656708,0.005,42354.0,42353.0,0.359107]
[1641875657512,0.005,42354.0,42353.0,0.3593413]
[1641875657908,0.002,42354.0,42353.0,0.94176743]
[1641875658712,0.003,42354.0,42353.0,0.95476743]
[1641875659714,0.003,42354.0,42353.0,0.3723413]
[1641875659913,0.002,42354.0,42353.0,0.3593413]
[1641875660754,0.003,42354.0,42353.0,0.3723413]
[1641875660954,0.003,42354.0,42353.0,0.95476743]
[1641875661960,0.0004915,42356.0,42353.0,1.26828724]
[1641875662157,0.0004915,42356.0,42355.0,0.03623557]
[1641875662357,0.0004915,42356.0,42355.0,0.73963668]
[1641875662760,0.0004915,42356.0,42355.0,0.75063668]
[1641875663359,0.001,42357.0,42355.0,0.75063668]
[1641875663559,0.001,42357.0,42355.0,0.74939111]
[1641875664012,0.001,42357.0,42355.0,2.76202802]
[1641875664211,0.001,42357.0,42356.0,0.34365932]
[1641875664409,0.001,42357.0,42356.0,0.67480358]
[1641875664608,0.001,42357.0,42356.0,0.68480358]
[1641875665210,0.001,42357.0,42356.0,1.26565075]
[1641875665620,0.001,42357.0,42356.0,0.68480358]
[1641875666013,0.001,42357.0,42356.0,0.67480358]
[1641875666313,0.001,42361.0,42357.0,0.359068]
[1641875666712,0.001,42361.0,42358.0,0.059016]
[1641875667012,0.001,42361.0,42359.0,0.359046]
[1641875667214,0.001,42361.0,42359.0,0.80507439]
[1641875667414,0.001,42361.0,42359.0,1.38526754]
[1641875668357,0.001,42361.0,42359.0,0.80507439]
[1641875668557,0.001,42361.0,42360.0,0.33796912]
[1641875668757,0.001,42361.0,42360.0,0.69700512]
[1641875669057,0.001,42361.0,42360.0,0.67558704]
[1641875669258,0.001,42361.0,42360.0,1.27558704]
[1641875669657,0.001,42361.0,42360.0,1.25578019]
[1641875670261,0.001,42361.0,42360.0,0.93922915]
[1641875670459,0.001,42361.0,42360.0,0.359036]
[1641875670665,0.001,42361.0,42360.0,0.68582087]
[1641875671260,0.001,42361.0,42360.0,0.819036]
[1641875671516,0.001,42361.0,42360.0,1.14995635]
[1641875671714,0.001,42361.0,42360.0,1.14767155]
[1641875671916,0.001,42361.0,42360.0,1.50151136]
[1641875672513,0.001,42361.0,42360.0,1.5017736]
[1641875672714,0.001,42361.0,42360.0,1.5127736]
[1641875673716,0.165908,42362.0,42360.0,1.0627736]
[1641875673914,0.165908,42362.0,42361.0,0.359027]
[1641875674114,0.165908,42362.0,42361.0,0.67460343]
[1641875674515,0.165908,42362.0,42361.0,0.67383516]
[1641875674715,0.165908,42362.0,42361.0,0.36825873]
[1641875675161,0.165908,42362.0,42361.0,0.71825873]
[1641875675362,0.165908,42362.0,42361.0,0.36825873]
[1641875675862,0.165908,42362.0,42361.0,0.35825873]
[1641875676660,0.165908,42362.0,42361.0,0.36825873]
[1641875677562,0.165908,42362.0,42361.0,0.36852064]
[1641875677964,0.165908,42362.0,42361.0,0.35852064]
[1641875678163,0.165908,42362.0,42361.0,0.60852064]
[1641875678366,0.165908,42362.0,42361.0,0.35852064]
[1641875678765,0.165908,42362.0,42361.0,0.37052064]
[1641875679207,0.165908,42362.0,42361.0,0.72052064]
[1641875679508,0.165908,42362.0,42361.0,1.05041167]
[1641875680208,0.165908,42362.0,42361.0,1.05164661]
[1641875680606,0.165908,42362.0,42361.0,1.03964661]
[1641875680808,0.165908,42362.0,42361.0,1.05364661]
[1641875682010,0.165908,42362.0,42361.0,1.03964661]
[1641875682658,0.165908,42362.0,42361.0,1.05364661]
[1641875682858,0.165908,42362.0,42361.0,0.43276658]
[1641875683060,0.165908,42362.0,42361.0,0.37375558]
[1641875683458,0.165908,42362.0,42361.0,0.69437178]
[1641875683962,0.165908,42362.0,42361.0,0.68037178]
[1641875684559,0.00753109,42363.0,42361.0,0.68037178]
[1641875684760,0.00753109,42363.0,42361.0,0.37275558]
[1641875684960,0.00753109,42363.0,42361.0,0.36775558]
[1641875685562,0.00753109,42363.0,42362.0,0.89059556]
[1641875685761,0.00753109,42363.0,42362.0,1.56783831]
[1641875685961,0.00753109,42363.0,42362.0,0.954486]
[1641875686166,0.00753109,42363.0,42362.0,0.354486]
[1641875686804,0.00753109,42363.0,42362.0,0.367486]
[1641875687005,0.00753109,42363.0,42362.0,1.19771098]
[1641875687504,0.00753109,42363.0,42362.0,1.19797257]
[1641875687905,0.00753109,42363.0,42362.0,1.18497257]
[1641875688305,0.00753109,42363.0,42362.0,0.35474759]
[1641875688710,0.00753109,42363.0,42362.0,0.36774759]
[1641875689106,0.00753109,42363.0,42362.0,0.66774759]
[1641875689507,0.00753109,42363.0,42362.0,0.36774759]
[1641875690156,0.00753109,42363.0,42362.0,0.35474759]
[1641875690760,0.00753109,42363.0,42362.0,0.36674759]
[1641875691661,0.00753109,42363.0,42362.0,0.79911169]
[1641875691959,0.00753109,42363.0,42362.0,1.48711169]
[1641875692560,0.00753109,42363.0,42362.0,1.38711169]
[1641875692761,0.00753109,42363.0,42362.0,1.98030484]
[1641875693660,0.00753109,42363.0,42362.0,2.32970583]
[1641875693906,0.00753109,42363.0,42362.0,0.94794074]
[1641875694105,0.00753109,42363.0,42362.0,0.93494074]
[1641875694308,0.05483109,42363.0,42362.0,0.58045474]
[1641875694505,0.05483109,42363.0,42362.0,0.00026159]
[1641875694703,0.05483109,42363.0,42362.0,0.02826159]
[1641875694704,0.05983109,42363.0,42362.0,0.02826159]
[1641875695904,0.05983109,42363.0,42362.0,0.00026159]
[1641875695905,0.05483109,42363.0,42362.0,0.00026159]
[1641875696705,0.07283109,42363.0,42362.0,0.00726159]
[1641875697106,0.44286009,42363.0,42362.0,0.00726159]
[1641875697406,0.07283109,42363.0,42362.0,0.00726159]
[1641875698056,0.05483109,42363.0,42362.0,0.00026159]
[1641875698658,0.43586009,42363.0,42362.0,0.00726159]
[1641875699060,0.77887533,42363.0,42362.0,0.00726159]
[1641875700661,0.42486009,42363.0,42362.0,0.00626159]
[1641875700861,0.44186009,42363.0,42362.0,0.00626159]